[Event "78th LOTTO POL-ch 2021"]
[Site "Bydgoszcz"]
[Date "2021.05.02"]
[Round "2.4"]
[White "Kempinski, Robert"]
[Black "Teclaf, Pawel"]
[Result "1/2-1/2"]
[ECO "A40"]
[WhiteElo "2561"]
[BlackElo "2502"]
[Annotator "ChessBase"]
[PlyCount "62"]
[EventDate "2021.04.29"]
[EventType "k.o."]
[EventCountry "POL"]
[SourceTitle "playchess.com"]
[Source "ChessBase"]
[SourceQuality "1"]
[TimeControl "900+10"]

1. d4 {[%emt 0:00:00]} e6 {[%emt 0:00:00]} 2. c4 {[%emt 0:00:00]} b6 {[%emt 0:00:00]} 3. e4 {[%emt 0:00:03]} Bb4+ {[%emt 0:00:00]} 4. Bd2 {[%emt 0:00:10]} Bxd2+ {[%emt 0:00:02]} 5. Qxd2 {[%emt 0:00:08]} d5 {[%emt 0:00:03]} 6. Nc3 {[%emt 0:01:50]} dxe4 {[%emt 0:00:09]} 7. Nxe4 {[%emt 0:00:25]} Bb7 {[%emt 0:00:04]} 8. Nc3 {[%emt 0:00:36]} Nf6 {[%emt 0:00:08]} 9. Nf3 {[%emt 0:00:23]} O-O {[%emt 0:00:34]} 10. Be2 {[%emt 0:00:12]} c5 {[%emt 0:00:29]} 11. O-O {[%emt 0:01:08]} cxd4 {[%emt 0:01:00]} 12. Qxd4 {[%emt 0:00:08]} Nc6 {[%emt 0:00:19]} 13. Qh4 {[%emt 0:00:38]} Ne7 {[%emt 0:01:45]} 14. Rfd1 {[%emt 0:00:39]} Qb8 {[%emt 0:00:47]} 15. Qg3 {[%emt 0:00:25]} Qxg3 {[%emt 0:01:51]} 16. hxg3 {[%emt 0:00:03]} Nf5 {[%emt 0:00:45]} 17. Ne5 {[%emt 0:01:17]} Rfd8 {[%emt 0:00:16]} 18. Bf3 {[%emt 0:00:04]} Bxf3 {[%emt 0:01:14]} 19. gxf3 {[%emt 0:00:02]} Nd4 {[%emt 0:01:35]} 20. Kg2 {[%emt 0:00:32]} Rd6 {[%emt 0:00:56]} 21. Rd3 {[%emt 0:02:47]} Rad8 {[%emt 0:00:18]} 22. Rad1 {[%emt 0:00:37]} Nf5 {[%emt 0:00:57]} 23. Nb5 {[%emt 0:00:37]} Rxd3 {[%emt 0:00:21]} 24. Rxd3 {[%emt 0:00:02]} Rxd3 {[%emt 0:00:07]} 25. Nxd3 {[%emt 0:00:02]} a6 {[%emt 0:00:38]} 26. Nc7 {[%emt 0:00:20]} a5 {[%emt 0:00:19]} 27. c5 {[%emt 0:00:45]} bxc5 {[%emt 0:00:22]} 28. Nxc5 {[%emt 0:00:02]} Nd4 {[%emt 0:00:18]} 29. Nb7 {[%emt 0:01:31]} Nc6 {[%emt 0:00:09]} 30. Nb5 {[%emt 0:00:33]} Nd5 {[%emt 0:00:14]} 31. N5d6 {[%emt 0:00:30]} Nb6 {[%emt 0:00:47]} 1/2-1/2

[Event "78th LOTTO POL-ch 2021"]
[Site "Bydgoszcz"]
[Date "2021.05.05"]
[Round "3.3"]
[White "Moranda, Wojciech"]
[Black "Teclaf, Pawel"]
[Result "1-0"]
[ECO "A40"]
[WhiteElo "2618"]
[BlackElo "2502"]
[Annotator "RC"]
[PlyCount "51"]
[EventDate "2021.04.29"]
[EventType "k.o."]
[EventCountry "POL"]
[SourceTitle "playchess.com"]
[Source "ChessBase"]
[SourceQuality "1"]
[TimeControl "900+10"]

1. d4 {[%emt 0:00:00]} e6 {[%emt 0:00:00]} 2. Nf3 {[%emt 0:00:00]} c5 {[%emt 0:00:00]} 3. c4 cxd4 {[%emt 0:00:00]} 4. Nxd4 {[%emt 0:00:01]} a6 {[%emt 0:00:00]} 5. Nc3 {[%emt 0:00:03]} Nf6 {[%emt 0:00:00]} 6. g3 {[%emt 0:00:01]} Qc7 {[%emt 0:00:00]} 7. Bg2 {[%emt 0:00:02]} Qxc4 {[%emt 0:00:19]} 8. O-O {[%emt 0:00:02]} Nc6 {[%emt 0:00:56]} 9. Nb3 {[%emt 0:00:05]} Be7 {[%emt 0:01:05]} 10. e4 {[%emt 0:00:35]} Qb4 {[%emt 0:00:32]} 11. Bf4 {[%emt 0:02:01]} d6 {[%emt 0:01:35]} 12. Be3 {[%emt 0:00:37]} Ne5 {[%emt 0:01:48]} 13. a3 {[%emt 0:00:23]} Qc4 {[%emt 0:00:02]} 14. Rc1 {[%emt 0:00:04]} Qd3 {[%emt 0:00:01]} 15. Nd2 {[%emt 0:01:10]} Nfg4 {[%emt 0:01:41]} 16. Bb6 {[%emt 0:00:30]} Bg5 {[%emt 0:01:42]} 17. f4 {[%emt 0:03:57]} Ne3 {[%emt 0:00:03]} 18. Bxe3 {[%emt 0:00:13]} Qxe3+ {[%emt 0:00:01]} 19. Kh1 {[%emt 0:00:03]} Bh6 {[%emt 0:00:32]} 20. Rc2 {[%emt 0:01:30]} Nd3 {[%emt 0:03:07]} 21. Ndb1 {[%emt 0:00:02]} Bxf4 {[%emt 0:04:00]} 22. gxf4 {[%emt 0:00:18]} Nxf4 {[%emt 0:00:01]} 23. Qxd6 {[%emt 0:00:13]} Nxg2 {[%emt 0:00:25]} 24. Rxg2 {[%emt 0:00:12]} Bd7 {[%emt 0:00:02]} 25. Nd2 {[%emt 0:00:24]} Rc8 {[%emt 0:00:10]} 26. Rxf7 {[%emt 0:00:32]} 1-0